bitfinex-derivatives/quotes_SOLF0:USTF0_20250730
["timestamp","ask_amount","ask_price","bid_price","bid_amount"]
[1753899863036,5.5663,179.66,179.6,8.5578]
[1753899863232,6.32437278,179.68,179.59,105.06]
[1753899863432,2.96,179.67,179.59,105.06]
[1753899863836,2.96,179.63,179.59,108.05]
[1753899864031,2.96,179.63,179.56,2.99]
[1753899864438,2.96,179.62,179.59,2.99]
[1753899864635,2.96,179.62,179.6,2.99]
[1753899864941,2.96,179.6,179.57,2.99]
[1753899865140,2.96,179.6,179.58,2.99]
[1753899865736,5.5668,179.64,179.54,6.32437278]
[1753899865940,2.96,179.62,179.59,2.99]
[1753899866139,2.96,179.6,179.54,6.32437278]
[1753899866334,2.96,179.6,179.58,2.99]
[1753899866730,6.32437278,179.65,179.54,6.32437278]
[1753899866935,2.96,179.67,179.61,2.99]
[1753899868442,2.96,179.66,179.61,2.99]
[1753899868645,3.18,179.7,179.61,3.22]
[1753899868942,5.5658,179.68,179.62,5.5673]
[1753899869343,3.18,179.66,179.63,3.22]
[1753899869536,3.18,179.66,179.63,8.7871]
[1753899869737,3.18,179.66,179.6,9.54437278]
[1753899870136,3.18,179.66,179.61,5.5677]
[1753899870337,3.18,179.66,179.61,8.7877]
[1753899870836,3.18,179.64,179.62,3.22]
[1753899871232,3.18,179.64,179.63,3.22]
[1753899871839,3.18,179.64,179.61,3.22]
[1753899872139,3.18,179.63,179.61,3.22]
[1753899872335,3.18,179.63,179.61,8.7877]
[1753899872541,3.18,179.63,179.61,3.22]
[1753899873547,3.18,179.62,179.61,3.22]
[1753899874247,3.18,179.62,179.59,8.7883]
[1753899874846,8.7474,179.63,179.57,15.11307278]
[1753899875045,3.18,179.63,179.58,3.22]
[1753899875246,3.18,179.67,179.58,3.22]
[1753899875648,5.5671,179.64,179.57,6.32437278]
[1753899875844,3.18,179.67,179.58,3.22]
[1753899876054,3.18,179.67,179.64,5.5666]
[1753899876353,3.18,179.67,179.65,3.22]
[1753899877139,3.18,179.67,179.65,8.7864]
[1753899877349,4.62253419,179.77,179.65,8.7864]
[1753899877350,3.18,179.73,179.65,8.7864]
[1753899877545,3.18,179.73,179.66,3.22]
[1753899877751,3.18,179.73,179.67,5.5657]
[1753899878051,3.18,179.69,179.64,3.22]
[1753899878440,6.32437278,179.74,179.64,3.22]
[1753899878743,3.18,179.7,179.64,3.22]
[1753899879346,8.745,179.7,179.66,5.566]
[1753899879545,3.18,179.69,179.67,3.22]
[1753899879944,3.18,179.68,179.66,5.566]
[1753899880248,3.18,179.67,179.66,3.22]
[1753899880548,5.5641,179.73,179.63,6.32437278]
[1753899880744,3.18,179.72,179.7,3.22]
[1753899880942,3.18,179.71,179.7,3.22]
[1753899881344,3.18,179.71,179.69,8.785]
[1753899882141,3.18,179.73,179.71,3.22]
[1753899882644,3.18,179.71,179.7,3.22]
[1753899882849,3.18,179.71,179.69,8.7851]
[1753899883251,3.18,179.7,179.69,3.22]
[1753899883551,3.18,179.7,179.67,3.22]
[1753899883850,3.18,179.69,179.68,3.22]
[1753899884651,3.18,179.69,179.63,6.32437278]
[1753899884845,3.18,179.69,179.63,3.22]
[1753899885050,3.18,179.69,179.63,5.567]
[1753899885252,3.18,179.69,179.62,3.22]
[1753899885551,3.18,179.67,179.61,105.02]
[1753899886047,5.5666,179.65,179.61,110.5877]
[1753899886252,6.32437278,179.68,179.63,3.22]
[1753899886451,6.32437278,179.68,179.61,105.02]
[1753899886748,5.5667,179.65,179.61,110.5877]
[1753899887054,6.32437278,179.68,179.61,108.24]
[1753899887255,3.18,179.67,179.62,3.22]
[1753899887453,3.18,179.67,179.63,3.22]
[1753899887648,6.32437278,179.68,179.61,105.02]
[1753899887855,3.18,179.62,179.61,105.02]
[1753899888251,5.5671,179.64,179.6,3.22]
[1753899888453,6.32437278,179.68,179.58,3.22]
[1753899888654,3.18,179.65,179.58,3.22]
[1753899888852,3.18,179.65,179.63,3.22]
[1753899890449,8.7465,179.65,179.63,3.22]
[1753899890651,3.18,179.65,179.63,3.22]
[1753899891850,8.7459,179.67,179.6,6.32437278]
[1753899892150,3.18,179.67,179.65,3.22]
[1753899892952,3.18,179.67,179.6,9.54437278]
[1753899893149,3.18,179.67,179.6,3.22]
[1753899895056,3.96101277,179.66,179.58,3.22]
[1753899895251,3.18,179.64,179.56,3.22]
[1753899895553,5.5686,179.59,179.56,8.7892]
[1753899895748,6.32437278,179.65,179.56,3.22]
[1753899895954,3.18,179.57,179.56,3.22]
[1753899896356,3.18,179.57,179.56,8.7893]
[1753899897258,3.18,179.57,179.56,3.22]
[1753899897454,3.18,179.57,179.55,5.5695]
[1753899897658,3.18,179.57,179.55,8.7895]
[1753899898159,3.18,179.57,179.56,5.5693]
[1753899898361,3.18,179.57,179.56,8.7893]
[1753899899061,3.18,179.57,179.56,3.22]
[1753899899661,3.18,179.57,179.56,8.7893]
[1753899899852,8.7284,179.59,179.56,8.7893]
[1753899900048,3.16,179.58,179.56,8.6093]
[1753899900260,3.16,179.58,179.57,5.569]
[1753899900760,3.16,179.58,179.56,8.6092]
[1753899900962,6.32437278,179.65,179.56,3.04]
[1753899901157,3.16,179.61,179.52,108.04]
[1753899901860,3.16,179.61,179.53,5.5702]
[1753899902355,3.16,179.61,179.54,3.04]
[1753899902860,3.16,179.61,179.59,3.04]
[1753899903056,6.21983666,179.7,179.52,105.0]
[1753899903057,3.16,179.67,179.58,105.0]
[1753899903258,3.16,179.65,179.61,3.04]
[1753899903458,3.16,179.64,179.62,3.04]
[1753899903761,3.16,179.63,179.62,5.5674]
[1753899904264,3.16,179.63,179.62,8.6074]
[1753899904560,6.32437278,179.67,179.58,108.04]
[1753899904760,6.32437278,179.64,179.58,105.0]
[1753899904962,5.5679,179.61,179.58,105.0]
[1753899905257,3.16,179.63,179.58,105.0]
[1753899905462,3.16,179.63,179.58,108.04]
[1753899905763,3.16,179.61,179.58,113.6085]
[1753899905961,3.16,179.6,179.58,113.6085]
[1753899906154,3.16,179.59,179.58,105.0]
[1753899907952,8.7284,179.59,179.58,105.0]
[1753899908162,5.5684,179.59,179.56,8.609]
[1753899908463,3.16,179.57,179.56,8.609]
[1753899909065,3.16,179.59,179.57,8.6089]
[1753899909261,3.16,179.58,179.57,3.04]
[1753899909559,3.16,179.63,179.55,3.04]
[1753899909865,3.16,179.63,179.54,110.5698]
[1753899909866,3.16,179.6,179.54,105.0]
[1753899910058,3.9661249,179.59,179.52,104.98]
[1753899910258,5.5698,179.55,179.52,104.98]
[1753899910456,3.16,179.58,179.52,104.98]
[1753899910659,3.16,179.58,179.53,3.04]
[1753899910861,5.5691,179.57,179.53,3.04]
[1753899911065,3.16,179.6,179.53,3.04]
[1753899911465,3.16,179.54,179.53,3.04]
[1753899912564,3.16,179.54,179.52,104.98]
[1753899912767,3.16,179.54,179.52,108.02]
[1753899913168,3.16,179.53,179.52,108.02]
[1753899913358,3.16,179.55,179.52,108.02]
[1753899913562,3.16,179.54,179.53,3.04]
[1753899914268,3.16,179.54,179.52,108.02]
[1753899914669,6.32437278,179.61,179.52,108.02]
[1753899914872,3.16,179.53,179.52,104.98]
[1753899915470,3.16,179.6,179.52,108.02]
[1753899916269,3.16,179.57,179.52,108.02]
[1753899916466,3.16,179.54,179.49,3.04]
[1753899916670,3.16,179.5,179.47,110.5519]
[1753899916868,6.32437278,179.52,179.47,104.98]
[1753899917061,3.16,179.51,179.42,3.04]
[1753899917262,6.32437278,179.49,179.41,215.19768802]
[1753899917476,3.16,179.48,179.4,104.98]
[1753899917667,3.16,179.45,179.4,104.98]
[1753899917875,3.16,179.39,179.37,3.04]
[1753899918073,3.16,179.39,179.38,3.04]
[1753899918365,5.5734,179.43,179.39,8.6145]
[1753899918569,3.16,179.41,179.39,8.6145]
[1753899918770,6.32437278,179.46,179.39,3.04]
[1753899918968,3.16,179.4,179.37,3.04]
[1753899919169,3.16,179.4,179.38,3.04]
[1753899919675,3.16,179.39,179.3,3.04]
[1753899919973,6.32437278,179.4,179.27,6.32437278]
[1753899919974,3.16,179.36,179.29,108.02]
[1753899920176,3.16,179.36,179.27,6.32437278]
[1753899920374,3.16,179.36,179.26,104.98]
[1753899920565,3.16,179.36,179.25,104.98]
[1753899920768,3.16,179.36,179.26,3.04]
[1753899921279,3.16,179.27,179.18,3.04]
[1753899921477,6.32437278,179.28,179.18,3.04]
[1753899921478,3.16,179.26,179.18,3.04]
[1753899922070,6.32437278,179.4,179.16,314.85420736]
[1753899922071,3.16,179.24,179.16,314.85420736]
[1753899922377,6.32437278,179.24,179.17,8.6211]
[1753899922573,3.16,179.23,179.17,3.04]
[1753899923375,3.16,179.2,179.15,3.04]
[1753899923570,3.16,179.17,179.1,8.6233]
[1753899923776,6.32437278,179.15,179.1,3.04]
[1753899923972,3.16,179.14,179.08,105.04]
[1753899924276,6.32437278,179.15,179.09,3.04]
[1753899924476,9.48437278,179.17,179.09,3.04]
[1753899924671,6.32437278,179.14,179.06,0.97180916]
[1753899924871,3.16,179.1,179.07,3.04]
[1753899925176,3.16,179.1,179.05,3.04]
[1753899925564,3.16,179.1,179.04,105.04]
[1753899925765,3.16,179.07,179.03,3.04]
[1753899925968,6.32437278,179.05,178.99,3.04]
[1753899926174,9.48437278,179.05,178.99,3.04]
[1753899926673,3.16,179.01,178.95,3.04]
[1753899926875,3.16,179.01,178.94,3.04]
[1753899927268,3.16,179.0,178.97,8.6275]
[1753899927473,3.16,179.01,178.94,3.04]
[1753899927674,3.16,178.98,178.91,3.04]
[1753899928070,3.16,179.0,178.91,3.04]
[1753899928274,3.16,179.03,178.94,3.04]
[1753899928473,4.55688652,179.02,178.94,3.04]
[1753899928682,2.98,179.06,178.99,3.01]
[1753899928878,4.55687141,179.05,178.99,3.01]
[1753899929074,4.55687141,179.04,178.97,13.34002498]
[1753899929276,4.55687141,179.04,178.98,3.01]
[1753899929480,4.5486921,179.03,178.96,105.3]
[1753899929680,4.5486921,179.02,178.96,105.3]
[1753899929885,2.98,179.0,178.96,108.31]
[1753899930080,2.98,178.97,178.94,3.01]
[1753899930274,2.98,178.96,178.91,3.01]
[1753899930475,2.98,178.96,178.9,105.46]
[1753899930678,2.98,178.94,178.87,5.5907]
[1753899930880,2.98,178.94,178.87,3.01]
[1753899931176,2.98,178.94,178.88,5.5904]
[1753899931381,4.52453322,178.93,178.84,3.01]
[1753899931577,2.98,178.91,178.83,105.48]
[1753899931778,2.98,178.89,178.82,3.01]
[1753899931979,2.98,178.93,178.82,3.01]
[1753899932183,4.52389641,178.92,178.85,3.01]
[1753899932380,2.98,178.93,178.85,3.01]
[1753899932780,2.98,178.93,178.87,3.01]
[1753899933182,2.98,178.99,178.89,3.01]
[1753899933484,2.98,178.97,178.88,5.5901]
[1753899933694,4.50546595,178.96,178.86,3.01]
[1753899933888,2.98,178.95,178.86,3.01]
[1753899934188,2.98,178.95,178.86,10.33002498]
[1753899934389,2.98,178.95,178.87,3.01]
[1753899934589,2.98,178.99,178.87,3.01]
[1753899934786,10.33002498,179.0,178.87,3.01]
[1753899934787,2.98,178.97,178.87,3.01]
[1753899934987,2.98,178.96,178.85,106.02]
[1753899935185,2.98,178.96,178.86,3.01]
[1753899935582,2.98,178.96,178.9,3.01]
[1753899935786,2.98,178.99,178.9,3.01]
[1753899936092,2.98,178.98,178.89,106.24]
[1753899936292,10.33002498,178.99,178.89,106.24]
[1753899936493,2.98,178.93,178.9,3.01]
[1753899936685,10.33002498,178.99,178.9,3.01]
[1753899936686,2.98,178.92,178.9,3.01]
[1753899936882,10.33002498,178.99,178.89,106.24]
[1753899937087,2.98,178.95,178.86,3.01]
[1753899937289,2.98,178.92,178.86,3.01]
[1753899937590,2.98,178.92,178.84,3.01]
[1753899937785,2.98,178.92,178.84,13.34002498]
[1753899937987,2.98,178.92,178.85,3.01]
[1753899938493,2.98,178.96,178.85,3.01]
[1753899938892,2.98,178.95,178.85,3.01]
[1753899939388,2.98,178.91,178.85,3.01]
[1753899939985,10.33002498,178.96,178.84,13.34002498]
[1753899940188,2.98,178.95,178.85,3.01]
[1753899940586,10.33002498,178.99,178.9,3.01]
[1753899940785,2.98,178.93,178.87,3.01]
[1753899940992,2.98,178.96,178.88,3.01]
[1753899941987,381.07983666,179.11,178.83,106.28]
[1753899941988,2.98,179.03,178.93,10.33002498]
[1753899942190,2.98,179.03,178.94,3.01]
[1753899942387,10.33002498,179.01,178.9,106.48]
[1753899942591,2.98,179.0,178.9,106.48]
[1753899943487,2.98,179.0,178.91,3.01]
[1753899944097,2.98,178.97,178.91,3.01]
[1753899944293,2.98,178.97,178.9,106.48]
[1753899944491,2.98,178.93,178.9,106.48]
[1753899944796,2.98,179.0,178.88,3.01]
[1753899945006,5.5888,178.94,178.88,3.01]
[1753899945195,2.98,179.0,178.88,3.01]
[1753899945798,10.33002498,178.98,178.88,3.01]
[1753899945995,2.98,178.97,178.88,3.01]
[1753899946196,2.98,178.97,178.92,5.5892]
[1753899946499,2.98,178.96,178.93,3.01]
[1753899946892,10.33002498,179.07,178.96,3.01]
[1753899947099,2.98,179.06,178.96,3.01]
[1753899947297,2.98,179.04,178.96,13.34002498]
[1753899947492,2.98,179.04,178.97,3.01]
[1753899947699,2.98,179.04,178.99,10.33002498]
[1753899947897,2.98,179.1,179.03,5.5855]
[1753899948202,2.98,179.1,179.04,3.01]
[1753899948395,2.98,179.12,179.06,3.01]
[1753899948602,2.98,179.15,179.06,3.01]
[1753899948797,8.5623,179.15,179.08,5.584]
[1753899949097,375.64,179.21,179.09,3.01]
[1753899949299,5.5804,179.21,179.14,5.5822]
[1753899949499,2.98,179.23,179.12,3.01]
[1753899951002,403.5236,179.32,179.05,375.64]
[1753899951003,8.5605,179.2,179.14,3.01]
[1753899951192,2.98,179.2,179.14,3.01]
[1753899952295,2.98,179.2,179.1,3.01]
[1753899952501,2.98,179.2,179.11,6.34490259]
[1753899952698,2.98,179.21,179.11,6.34490259]
[1753899952900,2.98,179.19,179.09,3.01]
[1753899953801,4.62253419,179.17,179.09,3.01]
[1753899954105,2.98,179.15,179.09,3.01]
[1753899954302,2.98,179.13,179.08,6.34490259]
[1753899954609,7.68314692,179.12,179.06,109.55]
[1753899954797,4.70314692,179.11,179.06,109.55]
[1753899955002,2.98,179.09,179.06,109.55]
[1753899955201,5.5845,179.07,179.06,109.55]
[1753899955405,10.29855101,179.07,179.05,6.34490259]
[1753899955600,7.69405101,179.06,179.02,3.01]
[1753899955799,4.71405101,179.05,179.03,3.01]
[1753899956200,7.69405101,179.05,179.03,3.01]
[1753899956407,7.69405101,179.04,179.01,3.01]
[1753899956608,4.71405101,179.03,179.02,9.35490259]
[1753899957001,4.71405101,179.06,179.02,6.34490259]
[1753899957202,4.71405101,179.05,179.02,6.34490259]
[1753899957509,4.62253419,179.1,179.05,0.98]
[1753899957702,4.62253419,179.11,179.05,0.98]
[1753899957898,4.62253419,179.12,179.1,0.98]
[1753899958105,10.20513419,179.13,179.1,0.98]
[1753899958304,4.62253419,179.12,179.1,0.98]
[1753899958510,4.62253419,179.11,179.09,6.34490259]
[1753899958804,4.62253419,179.11,179.1,0.98]
[1753899959008,4.62253419,179.12,179.11,0.98]
[1753899959203,3.25,179.16,179.09,6.34490259]
[1753899959204,4.62253419,179.14,179.12,0.98]
[1753899959506,9.46983666,179.15,179.12,7.32490259]
[1753899959705,9.46983666,179.14,179.01,0.98]
[1753899960007,4.56100358,179.1,179.09,0.98]
[1753899960308,6.21983666,179.12,179.09,0.98]
[1753899960605,4.56987408,179.11,179.1,6.34490259]
[1753899960809,4.56987408,179.12,179.1,6.34490259]
[1753899961007,4.56987408,179.12,179.11,6.5632]
[1753899961309,4.56987408,179.13,179.12,0.98]
[1753899961504,9.46983666,179.15,179.04,0.98]
[1753899961811,4.58559069,179.1,179.07,0.98]
[1753899962109,4.58559069,179.1,179.08,0.98]
[1753899962301,4.58559069,179.11,179.08,0.98]
[1753899962503,3.25,179.09,179.06,5.5847]
[1753899962699,4.58559069,179.09,179.07,0.98]
[1753899962901,3.25,179.07,179.02,6.34490259]
[1753899963105,3.25,179.06,179.03,0.98]
[1753899963303,4.58559069,179.05,179.03,0.98]
[1753899963808,4.58559069,179.05,179.04,5.5854]
[1753899964010,4.58559069,179.06,179.05,0.98]
[1753899964306,4.58559069,179.06,179.05,12.91000259]
[1753899964511,6.21983666,179.09,179.06,0.98]
[1753899964705,4.31766291,179.08,179.07,0.98]
[1753899964906,4.31766291,179.08,179.05,6.34490259]
[1753899965213,6.21983666,179.09,179.07,0.98]
[1753899965402,4.32322653,179.08,179.07,6.5645]
[1753899966112,4.32322653,179.08,179.07,5.5845]
[1753899966503,4.32322653,179.08,179.07,6.5645]
[1753899966707,6.21983666,179.12,179.05,6.34490259]
[1753899966914,6.21983666,179.12,179.1,7.32490259]
[1753899967110,6.21983666,179.12,179.1,11.92820259]
[1753899967313,4.62570341,179.12,179.1,7.32490259]
[1753899967511,3.25,179.16,179.11,0.98]
[1753899967812,3.25,179.16,179.13,6.34490259]
[1753899968204,3.25,179.16,179.13,7.32490259]
[1753899968404,3.25,179.17,179.13,6.34490259]
[1753899968609,3.25,179.16,179.13,6.34490259]
[1753899968812,3.25,179.16,179.14,5.5823]
[1753899969011,3.25,179.16,179.13,7.32490259]
[1753899969207,3.25,179.17,179.13,6.34490259]
[1753899969508,9.46983666,179.15,179.04,6.34490259]
[1753899969702,3.25,179.12,179.04,6.34490259]
[1753899969907,4.45581964,179.11,179.08,5.584]
[1753899970108,4.45581964,179.1,179.08,5.584]
[1753899970302,4.45581964,179.09,179.05,0.98]
[1753899970614,3.25,179.04,179.03,106.8]
[1753899970814,7.70581964,179.04,179.03,106.8]
[1753899971010,4.45581964,179.04,179.03,112.3857]
[1753899971216,4.45581964,179.04,179.03,113.3657]
[1753899971813,3.25,179.09,179.05,7.32490259]
[1753899972214,3.25,179.08,179.05,7.32490259]
[1753899973014,3.25,179.11,179.05,7.32490259]
[1753899973315,3.25,179.12,179.05,7.32490259]
[1753899974808,6.21983666,179.13,179.05,6.34490259]
[1753899975015,9.46983666,179.15,179.11,6.34490259]
[1753899975215,6.21983666,179.15,179.11,6.34490259]
[1753899975512,6.34490259,179.19,179.08,6.34490259]
[1753899975718,3.25,179.15,179.09,5.5836]
[1753899976115,11.92590259,179.19,179.12,5.5827]
[1753899976416,3.25,179.18,179.08,7.32490259]
[1753899977516,3.25,179.17,179.08,7.32490259]
[1753899978021,3.25,179.16,179.11,5.5831]
[1753899978215,3.25,179.16,179.08,6.34490259]
[1753899978420,3.25,179.16,179.12,0.98]
[1753899978623,3.25,179.16,179.11,6.34490259]
[1753899978818,3.25,179.19,179.14,7.32490259]
[1753899979017,3.25,179.24,179.14,6.34490259]
[1753899979718,3.25,179.24,179.1,0.98]
[1753899979925,3.25,179.24,179.11,113.10490259]
[1753899980423,6.34490259,179.22,179.11,113.10490259]
[1753899980621,3.25,179.21,179.11,113.10490259]
[1753899980922,3.25,179.18,179.11,106.76]
[1753899981516,5.582,179.16,179.11,106.76]
[1753899981717,3.25,179.15,179.11,106.76]
[1753899981912,5.5816,179.17,179.11,106.76]
[1753899982117,3.25,179.18,179.11,107.74]
[1753899982314,3.25,179.22,179.13,6.34490259]
[1753899982516,5.5805,179.2,179.14,5.5821]
[1753899982719,3.25,179.22,179.13,6.34490259]
[1753899982917,3.25,179.22,179.13,7.32490259]
[1753899983829,3.25,179.22,179.17,5.5813]
[1753899984221,3.25,179.22,179.13,6.34490259]
[1753899984824,3.25,179.22,179.12,10.30962344]
[1753899985018,5.5805,179.2,179.14,5.5821]
[1753899985227,3.25,179.19,179.12,10.30962344]
[1753899985829,375.42,179.29,179.11,106.76]
[1753899985830,3.25,179.16,179.11,106.76]
[1753899986728,3.25,179.13,179.11,106.76]
[1753899987231,5.5822,179.15,179.09,5.5837]
[1753899987529,3.25,179.14,179.09,5.5837]
[1753899987721,3.25,179.14,179.08,375.3]
[1753899987923,3.25,179.13,179.08,375.3]
[1753899988118,3.25,179.12,179.06,122.47389087]
[1753899988326,3.25,179.12,179.09,5.5839]
[1753899988526,3.25,179.11,179.09,5.5839]
[1753899988729,10.30962344,179.2,179.06,122.47389087]
[1753899988929,3.25,179.09,179.08,5.5842]
[1753899989130,3.25,179.12,179.06,122.47389087]
[1753899989334,3.25,179.11,179.08,4.64426743]
[1753899989622,3.25,179.1,179.09,5.5837]
[1753899989828,3.25,179.19,179.08,4.64426743]
[1753899990025,3.25,179.19,179.1,5.5834]
[1753899990531,3.25,179.2,179.09,10.22806743]
[1753899990829,3.25,179.2,179.09,4.64426743]
[1753899991028,5.5815,179.17,179.09,4.64426743]
[1753899991223,3.25,179.16,179.09,4.64426743]
[1753899991424,3.25,179.15,179.11,4.64426743]
[1753899991729,3.25,179.14,179.13,5.5824]
[1753899991923,3.25,179.16,179.12,0.98]
[1753899992129,10.30962344,179.24,179.12,0.98]
[1753899992130,3.25,179.21,179.13,0.98]
[1753899992327,3.25,179.21,179.15,4.64426743]
[1753899992629,3.25,179.21,179.19,5.5806]
[1753899992830,3.25,179.19,179.17,4.64426743]
[1753899993021,3.25,179.26,179.17,4.64426743]
[1753899993217,3.25,179.23,179.16,4.64426743]
[1753899993420,3.25,179.23,179.15,4.64426743]
[1753899993624,3.25,179.23,179.13,111.10426743]
[1753899994035,3.25,179.23,179.13,106.46]
[1753899994330,3.25,179.2,179.12,4.64426743]
[1753899994726,5.5813,179.18,179.12,10.22706743]
[1753899994932,3.25,179.17,179.12,4.64426743]
[1753899995332,5.5814,179.17,179.12,10.22706743]
[1753899995531,10.30962344,179.21,179.12,4.64426743]
[1753899995532,3.25,179.16,179.12,4.64426743]
[1753899995832,3.25,179.16,179.1,111.08426743]
[1753899996328,3.25,179.16,179.1,106.44]
[1753899997730,3.25,179.14,179.1,106.44]
[1753899998127,5.5823,179.15,179.1,112.0234]
[1753899998332,5.5824,179.14,179.1,106.44]
[1753899998533,3.25,179.11,179.1,106.44]
[1753899998729,3.25,179.14,179.07,4.64426743]
[1753899999036,3.25,179.14,179.04,4.64426743]
[1753899999634,5.5833,179.11,179.05,5.5851]
[1753899999931,3.25,179.14,179.07,4.64426743]
[1753900000125,3.25,179.17,179.09,5.62426743]
[1753900000533,3.25,179.16,179.11,5.5831]
[1753900000734,3.25,179.16,179.09,5.62426743]
[1753900001229,3.25,179.15,179.1,4.64426743]
[1753900001429,5.5815,179.17,179.11,0.98]
[1753900001430,3.25,179.17,179.11,0.98]
[1753900001632,3.25,179.17,179.11,5.62426743]
[1753900001833,10.30962344,179.24,179.13,5.62426743]
[1753900002043,3.25,179.22,179.12,4.64426743]
[1753900002240,10.30962344,179.24,179.13,4.64426743]
[1753900002535,3.25,179.18,179.14,5.62426743]
[1753900002934,3.25,179.18,179.15,5.5818]
[1753900003133,3.25,179.18,179.15,4.64426743]
[1753900003334,10.30962344,179.24,179.14,4.64426743]
[1753900003634,3.25,179.17,179.14,5.62426743]
[1753900003829,10.30962344,179.24,179.15,0.98]
[1753900004032,5.5799,179.22,179.17,5.5814]
[1753900004232,3.25,179.2,179.17,5.5814]
[1753900004435,3.25,179.2,179.15,5.62426743]
[1753900004436,3.25,179.26,179.16,4.64426743]
[1753900004735,3.25,179.26,179.16,5.62426743]
[1753900004933,3.25,179.26,179.17,5.62426743]
[1753900005127,3.25,179.26,179.18,4.64426743]
[1753900005332,3.25,179.26,179.17,5.62426743]
[1753900005840,3.25,179.26,179.13,10.30962344]
[1753900005841,3.25,179.23,179.19,0.98]
[1753900006137,3.25,179.22,179.19,0.98]
[1753900006440,3.25,179.34,179.21,0.98]
[1753900006740,3.25,179.34,179.31,6.33236669]
[1753900006933,3.25,179.41,179.31,6.33236669]
[1753900007333,3.25,179.36,179.31,6.33236669]
[1753900007739,5.5752,179.38,179.31,6.33236669]
[1753900007935,3.25,179.41,179.34,6.33236669]
[1753900008725,3.25,179.41,179.33,0.98]
[1753900009134,5.5748,179.39,179.33,0.98]
[1753900009334,3.25,179.38,179.28,4.67658639]
[1753900009538,3.25,179.38,179.26,11.26664921]
[1753900009734,3.25,179.38,179.27,0.98]
[1753900010133,5.576,179.35,179.28,5.5779]
[1753900010330,3.25,179.34,179.27,0.98]
[1753900010838,3.25,179.33,179.27,0.98]
[1753900011039,3.25,179.33,179.25,116.38664921]
[1753900011438,5.5774,179.3,179.25,116.38664921]
[1753900011635,3.25,179.37,179.25,116.38664921]
[1753900011935,3.25,179.35,179.28,11.26664921]
[1753900012535,3.25,179.35,179.29,5.5774]
[1753900012738,3.25,179.44,179.32,0.98]
[1753900013138,3.25,179.39,179.32,0.98]
[1753900013741,3.25,179.44,179.31,10.28664921]
[1753900014134,10.28664921,179.45,179.31,15.86344921]
[1753900014334,3.25,179.4,179.31,15.86344921]
[1753900014539,3.25,179.4,179.31,10.28664921]
[1753900014837,3.25,179.4,179.32,0.98]
[1753900015042,3.25,179.4,179.34,11.26664921]
[1753900015243,3.25,179.38,179.34,0.98]
[1753900015435,3.25,179.37,179.34,0.98]
[1753900015934,3.25,179.35,179.32,10.28664921]
[1753900017141,3.25,179.44,179.33,0.98]
[1753900017442,3.25,179.44,179.37,0.98]